[Event "*** Titled Tuesday Blitz"]
[Site "Chess.com"]
[Date "2021.02.02"]
[Round "8"]
[White "cukin84"]
[Black "Al_Shima"]
[Result "0-1"]
[WhiteElo "2139"]
[BlackElo "2291"]
[TimeControl "180+1"]
[EndTime "11:29:39 PST"]
[Termination "Al_Shima won by resignation"]

1. e4 {[%clk 0:03:00.9]} 1... e6 {[%clk 0:02:57.2]} 2. d4 {[%clk 0:03:00]} 2...
d5 {[%clk 0:02:56.5]} 3. Nc3 {[%clk 0:02:56.3]} 3... Bb4 {[%clk 0:02:54.7]} 4.
exd5 {[%clk 0:02:54]} 4... exd5 {[%clk 0:02:53]} 5. Bd3 {[%clk 0:02:54]} 5...
Nf6 {[%clk 0:02:49.3]} 6. Bg5 {[%clk 0:02:51.4]} 6... O-O {[%clk 0:02:46]} 7.
Ne2 {[%clk 0:02:50.3]} 7... c5 {[%clk 0:02:40.5]} 8. O-O {[%clk 0:02:47.6]} 8...
c4 {[%clk 0:02:40.5]} 9. Bxf6 {[%clk 0:02:44.2]} 9... gxf6 {[%clk 0:02:31]} 10.
Bxh7+ {[%clk 0:02:43.1]} 10... Kxh7 {[%clk 0:02:30.3]} 11. Nf4 {[%clk
0:02:42.7]} 11... Bxc3 {[%clk 0:02:23.1]} 12. Qh5+ {[%clk 0:02:38.5]} 12... Kg7
{[%clk 0:02:22.2]} 13. bxc3 {[%clk 0:02:35.4]} 13... Rh8 {[%clk 0:02:21.5]} 14.
Qf3 {[%clk 0:02:23.5]} 14... Be6 {[%clk 0:02:08.9]} 15. Nh5+ {[%clk 0:02:16.5]}
15... Rxh5 {[%clk 0:02:02.2]} 16. Qxh5 {[%clk 0:02:15.4]} 16... Nc6 {[%clk
0:02:02.5]} 17. Rab1 {[%clk 0:02:13.5]} 17... Qd6 {[%clk 0:02:02.1]} 18. g3
{[%clk 0:01:57.4]} 18... Rh8 {[%clk 0:02:00.9]} 19. Qf3 {[%clk 0:01:55.3]} 19...
b6 {[%clk 0:01:52.6]} 20. Rfe1 {[%clk 0:01:49.8]} 20... Ne7 {[%clk 0:01:51.8]}
21. a4 {[%clk 0:01:44]} 21... Ng6 {[%clk 0:01:47.3]} 22. a5 {[%clk 0:01:42.5]}
22... bxa5 {[%clk 0:01:45.1]} 23. Rb7 {[%clk 0:01:38.8]} 23... Qa6 {[%clk
0:01:42.7]} 24. Reb1 {[%clk 0:01:35.9]} 24... a4 {[%clk 0:01:40.2]} 25. R7b4
{[%clk 0:01:20.8]} 25... a3 {[%clk 0:01:40]} 26. Ra1 {[%clk 0:01:20.8]} 26...
Ne7 {[%clk 0:01:27.4]} 27. Qd1 {[%clk 0:01:09.7]} 27... Nc6 {[%clk 0:01:15.3]}
28. Rbb1 {[%clk 0:01:08.5]} 28... Qa5 {[%clk 0:01:14]} 29. Qc1 {[%clk
0:01:05.2]} 29... Qxc3 {[%clk 0:01:12.6]} 30. Rxa3 {[%clk 0:01:04.6]} 30... Qxd4
{[%clk 0:01:12.1]} 31. Re3 {[%clk 0:00:58]} 31... Ne5 {[%clk 0:01:09.3]} 32. Rb7
{[%clk 0:00:54.5]} 32... a5 {[%clk 0:01:04]} 33. Qb2 {[%clk 0:00:44.3]} 33...
Qxb2 {[%clk 0:01:00.5]} 34. Rxb2 {[%clk 0:00:43.6]} 34... d4 {[%clk 0:01:01]}
35. Re4 {[%clk 0:00:42.4]} 35... Bf5 {[%clk 0:00:56.2]} 36. Rf4 {[%clk 0:00:36]}
36... Kg6 {[%clk 0:00:52.3]} 37. Kg2 {[%clk 0:00:30.8]} 37... d3 {[%clk
0:00:51.9]} 38. cxd3 {[%clk 0:00:30.1]} 38... Nxd3 {[%clk 0:00:49.9]} 39. Rxf5
{[%clk 0:00:28.8]} 39... Kxf5 {[%clk 0:00:43.9]} 40. Rb5+ {[%clk 0:00:28.7]}
40... Ke4 {[%clk 0:00:43.9]} 41. Rxa5 {[%clk 0:00:28.8]} 41... c3 {[%clk
0:00:42.5]} 42. Ra4+ {[%clk 0:00:28.2]} 42... Kd5 {[%clk 0:00:41.4]} 43. Ra5+
{[%clk 0:00:28.6]} 43... Kc4 {[%clk 0:00:40.7]} 44. Ra4+ {[%clk 0:00:28.9]}
44... Nb4 {[%clk 0:00:40.7]} 45. Kf3 {[%clk 0:00:25.5]} 45... c2 {[%clk
0:00:40]} 46. Ra1 {[%clk 0:00:24.6]} 46... Rd8 {[%clk 0:00:39.6]} 0-1

[Event "*** Titled Tuesday Blitz"]
[Site "Chess.com"]
[Date "2021.02.02"]
[Round "8"]
[White "Nikolaj_6"]
[Black "Zmof"]
[Result "1-0"]
[WhiteElo "2599"]
[BlackElo "2133"]
[TimeControl "180+1"]
[EndTime "11:29:41 PST"]
[Termination "Nikolaj_6 won on time"]

1. e4 {[%clk 0:03:00.9]} 1... c5 {[%clk 0:02:58.3]} 2. Nc3 {[%clk 0:02:59]} 2...
a6 {[%clk 0:02:57.7]} 3. d4 {[%clk 0:02:55.4]} 3... cxd4 {[%clk 0:02:56.8]} 4.
Qxd4 {[%clk 0:02:56.3]} 4... Nc6 {[%clk 0:02:57.2]} 5. Qd2 {[%clk 0:02:56.4]}
5... Nf6 {[%clk 0:02:52.9]} 6. b3 {[%clk 0:02:54.9]} 6... e6 {[%clk 0:02:45.4]}
7. a3 {[%clk 0:02:50.3]} 7... d5 {[%clk 0:02:39.6]} 8. exd5 {[%clk 0:02:49.6]}
8... Nxd5 {[%clk 0:02:39.2]} 9. Nxd5 {[%clk 0:02:49.3]} 9... Qxd5 {[%clk
0:02:39.3]} 10. Qxd5 {[%clk 0:02:48.7]} 10... exd5 {[%clk 0:02:39.4]} 11. Bb2
{[%clk 0:02:48.9]} 11... Be6 {[%clk 0:02:37.9]} 12. O-O-O {[%clk 0:02:48.1]}
12... Rc8 {[%clk 0:02:36]} 13. Nf3 {[%clk 0:02:44.2]} 13... f6 {[%clk
0:02:32.3]} 14. Bd3 {[%clk 0:02:40.8]} 14... Kf7 {[%clk 0:02:29.3]} 15. Rhe1
{[%clk 0:02:40]} 15... Bd6 {[%clk 0:02:27.8]} 16. Kb1 {[%clk 0:02:33.8]} 16...
g6 {[%clk 0:02:27.2]} 17. b4 {[%clk 0:02:25.1]} 17... Rhe8 {[%clk 0:02:25.5]}
18. h3 {[%clk 0:02:18.2]} 18... b5 {[%clk 0:01:32.7]} 19. Re2 {[%clk 0:02:02.6]}
19... Bd7 {[%clk 0:01:23.4]} 20. Nd4 {[%clk 0:01:55.8]} 20... Nxd4 {[%clk
0:01:19.7]} 21. Bxd4 {[%clk 0:01:54.6]} 21... Rxe2 {[%clk 0:01:19.5]} 22. Bxe2
{[%clk 0:01:55.5]} 22... Bf5 {[%clk 0:01:00.6]} 23. Bd3 {[%clk 0:01:54.1]} 23...
Bxd3 {[%clk 0:00:59.5]} 24. Rxd3 {[%clk 0:01:55]} 24... Rc4 {[%clk 0:00:54.7]}
25. c3 {[%clk 0:01:52.8]} 25... Rc8 {[%clk 0:00:53]} 26. Kb2 {[%clk 0:01:51]}
26... Re8 {[%clk 0:00:52]} 27. Be3 {[%clk 0:01:48.7]} 27... Ke6 {[%clk 0:00:51]}
28. Kb3 {[%clk 0:01:48.9]} 28... Be5 {[%clk 0:00:49.3]} 29. a4 {[%clk
0:01:48.8]} 29... Rc8 {[%clk 0:00:47.8]} 30. Bc5 {[%clk 0:01:46.4]} 30... f5
{[%clk 0:00:42.3]} 31. Rd2 {[%clk 0:01:24]} 31... h5 {[%clk 0:00:33.9]} 32. Ra2
{[%clk 0:01:23.2]} 32... bxa4+ {[%clk 0:00:24.2]} 33. Rxa4 {[%clk 0:01:22.1]}
33... Rc6 {[%clk 0:00:24.4]} 34. Ra2 {[%clk 0:01:18.3]} 34... Bd6 {[%clk
0:00:23.1]} 35. Re2+ {[%clk 0:01:15]} 35... Kd7 {[%clk 0:00:21.1]} 36. Bd4
{[%clk 0:01:12.9]} 36... Rc4 {[%clk 0:00:19]} 37. Rd2 {[%clk 0:01:05.2]} 37...
Ke6 {[%clk 0:00:17.4]} 38. Rd3 {[%clk 0:01:03.4]} 38... Kd7 {[%clk 0:00:14.8]}
39. f3 {[%clk 0:01:03.1]} 39... Ke6 {[%clk 0:00:14.8]} 40. g4 {[%clk 0:01:03.2]}
40... hxg4 {[%clk 0:00:14.4]} 41. hxg4 {[%clk 0:01:03]} 41... fxg4 {[%clk
0:00:14.8]} 42. fxg4 {[%clk 0:01:03.4]} 42... Bf4 {[%clk 0:00:13.6]} 43. Rf3
{[%clk 0:01:02.1]} 43... g5 {[%clk 0:00:13.3]} 44. Rh3 {[%clk 0:01:02.1]} 44...
Rc6 {[%clk 0:00:08.9]} 45. Rh6+ {[%clk 0:01:01.4]} 45... Kd7 {[%clk 0:00:09.2]}
46. Rh7+ {[%clk 0:00:59.7]} 46... Ke6 {[%clk 0:00:09.6]} 47. Kc2 {[%clk
0:00:54.5]} 1-0

[Event "*** Titled Tuesday Blitz"]
[Site "Chess.com"]
[Date "2021.02.02"]
[Round "8"]
[White "MF1966Idrisov"]
[Black "fish7728"]
[Result "0-1"]
[WhiteElo "2380"]
[BlackElo "2214"]
[TimeControl "180+1"]
[EndTime "11:29:42 PST"]
[Termination "fish7728 won by checkmate"]

1. Nf3 {[%clk 0:03:00.9]} 1... Nf6 {[%clk 0:02:59.8]} 2. b3 {[%clk 0:03:01]}
2... g6 {[%clk 0:02:59.8]} 3. Bb2 {[%clk 0:03:01.3]} 3... Bg7 {[%clk 0:03:00.7]}
4. c4 {[%clk 0:03:02]} 4... O-O {[%clk 0:03:00.5]} 5. g3 {[%clk 0:03:02.5]} 5...
d6 {[%clk 0:03:00.8]} 6. d4 {[%clk 0:03:02]} 6... b6 {[%clk 0:02:55.5]} 7. Bg2
{[%clk 0:03:01.9]} 7... Bb7 {[%clk 0:02:55.7]} 8. O-O {[%clk 0:03:02.5]} 8...
Nbd7 {[%clk 0:02:56]} 9. Nc3 {[%clk 0:03:01.1]} 9... a6 {[%clk 0:02:55.8]} 10.
d5 {[%clk 0:03:00.9]} 10... c5 {[%clk 0:02:52.6]} 11. dxc6 {[%clk 0:02:57.3]}
11... Bxc6 {[%clk 0:02:52.4]} 12. Rc1 {[%clk 0:02:57.1]} 12... Rc8 {[%clk
0:02:50.7]} 13. Qd2 {[%clk 0:02:56.9]} 13... Re8 {[%clk 0:02:40.6]} 14. Nd4
{[%clk 0:02:53.5]} 14... Bxg2 {[%clk 0:02:39.1]} 15. Kxg2 {[%clk 0:02:53.7]}
15... Qc7 {[%clk 0:02:38.6]} 16. f3 {[%clk 0:02:52.2]} 16... Qb7 {[%clk
0:02:37.9]} 17. h3 {[%clk 0:02:49]} 17... Ne5 {[%clk 0:02:35.4]} 18. e4 {[%clk
0:02:39.2]} 18... Nc6 {[%clk 0:02:34.9]} 19. Nxc6 {[%clk 0:02:37.7]} 19... Qxc6
{[%clk 0:02:28.4]} 20. Nd5 {[%clk 0:02:36.7]} 20... Qb7 {[%clk 0:02:25.8]} 21.
Bxf6 {[%clk 0:02:34.4]} 21... exf6 {[%clk 0:02:22.2]} 22. Qf4 {[%clk 0:02:24.6]}
22... f5 {[%clk 0:02:20]} 23. Qxd6 {[%clk 0:02:06.2]} 23... fxe4 {[%clk
0:01:50]} 24. Qxb6 {[%clk 0:02:01.1]} 24... exf3+ {[%clk 0:01:39.1]} 25. Rxf3
{[%clk 0:01:55.2]} 25... Re2+ {[%clk 0:01:06.7]} 26. Kf1 {[%clk 0:01:48.1]}
26... Qxb6 {[%clk 0:01:06]} 27. Nxb6 {[%clk 0:01:47.2]} 27... Rce8 {[%clk
0:01:06]} 28. c5 {[%clk 0:00:46.4]} 28... Bd4 {[%clk 0:00:39.4]} 29. Nd7 {[%clk
0:00:27.2]} 29... Rh2 {[%clk 0:00:18.9]} 30. Rfc3 {[%clk 0:00:18.1]} 30... Ree2
{[%clk 0:00:12.6]} 31. Rf3 {[%clk 0:00:12.4]} 31... Rxa2 {[%clk 0:00:08.7]} 32.
c6 {[%clk 0:00:09.5]} 32... Rh1# {[%clk 0:00:08.4]} 0-1

[Event "*** Titled Tuesday Blitz"]
[Site "Chess.com"]
[Date "2021.02.02"]
[Round "8"]
[White "nrvisakh"]
[Black "doons21"]
[Result "1-0"]
[WhiteElo "2745"]
[BlackElo "2552"]
[TimeControl "180+1"]
[EndTime "11:29:45 PST"]
[Termination "nrvisakh won by resignation"]

1. c4 {[%clk 0:02:55.5]} 1... Nf6 {[%clk 0:03:00]} 2. g3 {[%clk 0:02:52.9]} 2...
g6 {[%clk 0:02:59.9]} 3. Bg2 {[%clk 0:02:52.8]} 3... Bg7 {[%clk 0:03:00.6]} 4.
Nf3 {[%clk 0:02:51.6]} 4... O-O {[%clk 0:03:00.8]} 5. O-O {[%clk 0:02:52.2]}
5... d6 {[%clk 0:03:00.5]} 6. Nc3 {[%clk 0:02:52.3]} 6... c6 {[%clk 0:02:51.2]}
7. b4 {[%clk 0:02:48.4]} 7... d5 {[%clk 0:02:49]} 8. Qb3 {[%clk 0:02:33.6]} 8...
dxc4 {[%clk 0:02:04.7]} 9. Qxc4 {[%clk 0:02:32]} 9... Be6 {[%clk 0:02:05.3]} 10.
Qh4 {[%clk 0:02:31.4]} 10... Nbd7 {[%clk 0:01:58.5]} 11. Ng5 {[%clk 0:02:28.7]}
11... Bd5 {[%clk 0:01:35.1]} 12. Nxd5 {[%clk 0:02:10.9]} 12... cxd5 {[%clk
0:01:34.9]} 13. Bb2 {[%clk 0:02:02.9]} 13... h6 {[%clk 0:01:28.9]} 14. Nf3
{[%clk 0:02:02.8]} 14... e6 {[%clk 0:01:25.4]} 15. Rab1 {[%clk 0:01:54.6]} 15...
Ne4 {[%clk 0:01:15.7]} 16. Qxd8 {[%clk 0:01:52.7]} 16... Rfxd8 {[%clk
0:01:15.4]} 17. Bxg7 {[%clk 0:01:24]} 17... Kxg7 {[%clk 0:01:16.3]} 18. d3
{[%clk 0:01:23.8]} 18... Nd6 {[%clk 0:01:16.1]} 19. Rfc1 {[%clk 0:01:16.7]}
19... Rac8 {[%clk 0:01:12.9]} 20. Nd4 {[%clk 0:01:16.4]} 20... Kf6 {[%clk
0:00:52.8]} 21. f4 {[%clk 0:01:12.9]} 21... Ke7 {[%clk 0:00:48.2]} 22. Nb3
{[%clk 0:01:06.7]} 22... Rxc1+ {[%clk 0:00:45.2]} 23. Rxc1 {[%clk 0:01:06.2]}
23... Rc8 {[%clk 0:00:46.1]} 24. Rxc8 {[%clk 0:01:04]} 24... Nxc8 {[%clk
0:00:46.2]} 25. e4 {[%clk 0:01:03.6]} 25... dxe4 {[%clk 0:00:29.7]} 26. Bxe4
{[%clk 0:01:03.5]} 26... Nd6 {[%clk 0:00:28.8]} 27. Bf3 {[%clk 0:01:03.3]} 27...
b6 {[%clk 0:00:28.9]} 28. Kf2 {[%clk 0:01:03.1]} 28... h5 {[%clk 0:00:27.7]} 29.
Nd4 {[%clk 0:01:03.2]} 29... Nb8 {[%clk 0:00:27.8]} 30. a4 {[%clk 0:00:59.6]}
30... Ne8 {[%clk 0:00:27.2]} 31. Nb5 {[%clk 0:00:58.7]} 31... a5 {[%clk
0:00:27.2]} 32. bxa5 {[%clk 0:00:58]} 32... bxa5 {[%clk 0:00:28.1]} 33. Na3
{[%clk 0:00:54.9]} 33... Nc7 {[%clk 0:00:20.2]} 34. Nc4 {[%clk 0:00:53.9]} 34...
Nca6 {[%clk 0:00:20.9]} 35. d4 {[%clk 0:00:50.6]} 35... Nb4 {[%clk 0:00:21.4]}
36. Nxa5 {[%clk 0:00:47.8]} 36... Nd7 {[%clk 0:00:19.6]} 37. Nc6+ {[%clk
0:00:46.5]} 37... Nxc6 {[%clk 0:00:20]} 38. Bxc6 {[%clk 0:00:47.4]} 38... Nb8
{[%clk 0:00:19.2]} 39. Bb5 {[%clk 0:00:46.8]} 39... Kd6 {[%clk 0:00:19.7]} 40.
Ke3 {[%clk 0:00:47]} 40... f6 {[%clk 0:00:15.3]} 41. Ke4 {[%clk 0:00:46.1]}
41... f5+ {[%clk 0:00:15.1]} 42. Kd3 {[%clk 0:00:45.8]} 42... Kd5 {[%clk
0:00:15.7]} 43. a5 {[%clk 0:00:45.5]} 43... Nc6 {[%clk 0:00:12.5]} 44. Bxc6+
{[%clk 0:00:43.7]} 44... Kxc6 {[%clk 0:00:13.4]} 1-0

[Event "*** Titled Tuesday Blitz"]
[Site "Chess.com"]
[Date "2021.02.02"]
[Round "8"]
[White "CrushingKings"]
[Black "ftorodent"]
[Result "1-0"]
[WhiteElo "2385"]
[BlackElo "2686"]
[TimeControl "180+1"]
[EndTime "11:29:46 PST"]
[Termination "CrushingKings won by resignation"]

1. e4 {[%clk 0:03:00.9]} 1... c5 {[%clk 0:02:59.7]} 2. d4 {[%clk 0:03:00.9]}
2... cxd4 {[%clk 0:02:59.4]} 3. c3 {[%clk 0:03:01.6]} 3... d3 {[%clk 0:02:59.8]}
4. Bxd3 {[%clk 0:03:01.7]} 4... e6 {[%clk 0:02:59.2]} 5. c4 {[%clk 0:03:01.7]}
5... Nf6 {[%clk 0:02:56.3]} 6. Nc3 {[%clk 0:03:02.2]} 6... d6 {[%clk 0:02:56.6]}
7. Nf3 {[%clk 0:03:02.1]} 7... Be7 {[%clk 0:02:56.6]} 8. O-O {[%clk 0:03:02.7]}
8... O-O {[%clk 0:02:56.5]} 9. Qe2 {[%clk 0:03:03.4]} 9... Nbd7 {[%clk
0:02:56.4]} 10. Rd1 {[%clk 0:03:03.9]} 10... a6 {[%clk 0:02:51.3]} 11. h3 {[%clk
0:02:59.7]} 11... Qc7 {[%clk 0:02:51]} 12. Be3 {[%clk 0:02:58.1]} 12... b6
{[%clk 0:02:50.2]} 13. Rac1 {[%clk 0:02:58.4]} 13... Bb7 {[%clk 0:02:50.4]} 14.
Bb1 {[%clk 0:02:47.9]} 14... Rac8 {[%clk 0:02:48.3]} 15. b3 {[%clk 0:02:47.7]}
15... Rfe8 {[%clk 0:02:44.8]} 16. Nd4 {[%clk 0:02:45.7]} 16... Nc5 {[%clk
0:02:40.9]} 17. Bg5 {[%clk 0:02:42]} 17... Qb8 {[%clk 0:02:27.8]} 18. b4 {[%clk
0:02:21.7]} 18... Ncd7 {[%clk 0:02:27.5]} 19. a3 {[%clk 0:02:21.4]} 19... Ne5
{[%clk 0:02:21]} 20. Na4 {[%clk 0:02:10.6]} 20... Ba8 {[%clk 0:02:09.3]} 21. Be3
{[%clk 0:02:05.1]} 21... Nxc4 {[%clk 0:01:50.3]} 22. Rxc4 {[%clk 0:01:54.1]}
22... Rxc4 {[%clk 0:01:50.1]} 23. Qxc4 {[%clk 0:01:55]} 23... b5 {[%clk
0:01:50.3]} 24. Qb3 {[%clk 0:01:46]} 24... bxa4 {[%clk 0:01:50.4]} 25. Qxa4
{[%clk 0:01:46.2]} 25... Nxe4 {[%clk 0:01:50.6]} 26. Qxa6 {[%clk 0:01:26.3]}
26... Nc3 {[%clk 0:01:40.3]} 27. Rc1 {[%clk 0:01:13]} 27... Nxb1 {[%clk
0:01:32.3]} 28. Rxb1 {[%clk 0:01:13.9]} 28... d5 {[%clk 0:01:23.5]} 29. Nc6
{[%clk 0:01:09.7]} 29... Bxc6 {[%clk 0:01:21.4]} 30. Qxc6 {[%clk 0:01:10.6]}
30... Rd8 {[%clk 0:01:03.7]} 31. b5 {[%clk 0:00:32.2]} 31... d4 {[%clk
0:00:55.8]} 32. Bd2 {[%clk 0:00:28.7]} 32... Bxa3 {[%clk 0:00:44.9]} 33. b6
{[%clk 0:00:28.9]} 33... h6 {[%clk 0:00:34.7]} 34. b7 {[%clk 0:00:28.2]} 34...
d3 {[%clk 0:00:31]} 35. Ba5 {[%clk 0:00:19.4]} 35... d2 {[%clk 0:00:09.8]} 36.
Bxd8 {[%clk 0:00:18.2]} 36... Qxd8 {[%clk 0:00:09.9]} 37. Qc8 {[%clk 0:00:17.8]}
1-0

[Event "*** Titled Tuesday Blitz"]
[Site "Chess.com"]
[Date "2021.02.02"]
[Round "8"]
[White "m_ezat"]
[Black "krasavetc"]
[Result "1-0"]
[WhiteElo "2546"]
[BlackElo "2367"]
[TimeControl "180+1"]
[EndTime "11:29:48 PST"]
[Termination "m_ezat won by resignation"]

1. d4 {[%clk 0:03:00.9]} 1... Nf6 {[%clk 0:02:59.2]} 2. c4 {[%clk 0:02:56.8]}
2... e6 {[%clk 0:02:58.7]} 3. Nc3 {[%clk 0:02:57.2]} 3... d5 {[%clk 0:02:58.4]}
4. cxd5 {[%clk 0:02:56.7]} 4... exd5 {[%clk 0:02:58.9]} 5. Bg5 {[%clk
0:02:56.8]} 5... c6 {[%clk 0:02:59.8]} 6. Qc2 {[%clk 0:02:56.5]} 6... Be7 {[%clk
0:03:00]} 7. e3 {[%clk 0:02:56]} 7... O-O {[%clk 0:02:59.3]} 8. Bd3 {[%clk
0:02:56.5]} 8... h6 {[%clk 0:02:58.5]} 9. Bf4 {[%clk 0:02:55.8]} 9... Nbd7
{[%clk 0:02:57.2]} 10. Nge2 {[%clk 0:02:52.4]} 10... Re8 {[%clk 0:02:55.5]} 11.
O-O {[%clk 0:02:51]} 11... Nf8 {[%clk 0:02:55.8]} 12. Rab1 {[%clk 0:02:50.1]}
12... Ne6 {[%clk 0:02:54]} 13. Bg3 {[%clk 0:02:49.2]} 13... Bd6 {[%clk
0:02:52.2]} 14. b4 {[%clk 0:02:48.7]} 14... Ng5 {[%clk 0:02:47.9]} 15. b5 {[%clk
0:02:46.8]} 15... Ng4 {[%clk 0:02:43.5]} 16. bxc6 {[%clk 0:02:45.8]} 16... bxc6
{[%clk 0:02:42.8]} 17. Na4 {[%clk 0:02:32.5]} 17... Bxg3 {[%clk 0:02:38.8]} 18.
hxg3 {[%clk 0:02:31.1]} 18... Qf6 {[%clk 0:02:35.9]} 19. Rbc1 {[%clk 0:02:18.7]}
19... Bd7 {[%clk 0:02:21.1]} 20. Nc5 {[%clk 0:02:14.5]} 20... Be6 {[%clk
0:02:16.7]} 21. Nxe6 {[%clk 0:02:11.2]} 21... fxe6 {[%clk 0:02:03.5]} 22. Qxc6
{[%clk 0:02:00.3]} 22... Rf8 {[%clk 0:01:56.9]} 23. Nf4 {[%clk 0:01:57.1]} 23...
Rae8 {[%clk 0:01:51.3]} 24. Bg6 {[%clk 0:01:46.2]} 24... Re7 {[%clk 0:01:44.8]}
25. Bh5 {[%clk 0:01:46.6]} 25... Qf5 {[%clk 0:01:30.2]} 26. Ng6 {[%clk
0:01:45.9]} 26... Ref7 {[%clk 0:01:24.3]} 27. Nxf8 {[%clk 0:01:33.5]} 27... Rxf8
{[%clk 0:01:25.2]} 28. Bxg4 {[%clk 0:01:23.3]} 28... Qxg4 {[%clk 0:01:24.2]} 29.
Qd7 {[%clk 0:01:22.8]} 29... h5 {[%clk 0:01:16.1]} 30. Rc8 {[%clk 0:01:16.1]}
30... Rxc8 {[%clk 0:01:10.7]} 31. Qxc8+ {[%clk 0:01:15.9]} 31... Kh7 {[%clk
0:01:11.1]} 32. Qc2+ {[%clk 0:01:15.5]} 32... Kh6 {[%clk 0:01:04.8]} 33. Qd1
{[%clk 0:00:57.6]} 33... Qf5 {[%clk 0:00:55.7]} 34. f3 {[%clk 0:00:56.2]} 34...
Qg6 {[%clk 0:00:50]} 35. Qd2 {[%clk 0:00:51.7]} 35... Nf7 {[%clk 0:00:42.5]} 36.
e4+ {[%clk 0:00:40]} 36... Kh7 {[%clk 0:00:41.5]} 37. exd5 {[%clk 0:00:39.3]}
37... Qxg3 {[%clk 0:00:35.5]} 38. Qe1 {[%clk 0:00:26.5]} 38... Qf4 {[%clk
0:00:26.7]} 39. Qe4+ {[%clk 0:00:26.2]} 39... Qf5 {[%clk 0:00:17.5]} 40. dxe6
{[%clk 0:00:25.1]} 1-0

[Event "*** Titled Tuesday Blitz"]
[Site "Chess.com"]
[Date "2021.02.02"]
[Round "8"]
[White "DanilNajdin"]
[Black "scarabee43"]
[Result "1-0"]
[WhiteElo "2472"]
[BlackElo "2570"]
[TimeControl "180+1"]
[EndTime "11:29:49 PST"]
[Termination "DanilNajdin won by resignation"]

1. e4 {[%clk 0:03:00.9]} 1... c5 {[%clk 0:02:59.9]} 2. Nf3 {[%clk 0:03:00.2]}
2... e6 {[%clk 0:03:00.4]} 3. d4 {[%clk 0:03:00.1]} 3... cxd4 {[%clk 0:03:00.9]}
4. Nxd4 {[%clk 0:03:01]} 4... Nc6 {[%clk 0:03:01.1]} 5. Nxc6 {[%clk 0:03:00.8]}
5... bxc6 {[%clk 0:03:00.7]} 6. Bd3 {[%clk 0:03:01.7]} 6... d5 {[%clk
0:02:59.7]} 7. Nd2 {[%clk 0:03:01.9]} 7... Nf6 {[%clk 0:02:59.8]} 8. O-O {[%clk
0:03:02.3]} 8... Be7 {[%clk 0:02:59.4]} 9. b3 {[%clk 0:03:02.7]} 9... a5 {[%clk
0:02:57.2]} 10. c4 {[%clk 0:03:01.2]} 10... O-O {[%clk 0:02:49.1]} 11. Bb2
{[%clk 0:03:00.8]} 11... Bb7 {[%clk 0:02:47.3]} 12. f4 {[%clk 0:02:48.3]} 12...
Qb6+ {[%clk 0:02:37.6]} 13. Kh1 {[%clk 0:02:47.1]} 13... Rfd8 {[%clk 0:02:27]}
14. Qe2 {[%clk 0:02:19.6]} 14... a4 {[%clk 0:02:13.9]} 15. f5 {[%clk 0:02:19.8]}
15... a3 {[%clk 0:02:09.3]} 16. Bxf6 {[%clk 0:02:17.8]} 16... Bxf6 {[%clk
0:02:08.3]} 17. e5 {[%clk 0:02:17.7]} 17... Bg5 {[%clk 0:02:06]} 18. fxe6 {[%clk
0:01:50.6]} 18... fxe6 {[%clk 0:01:58.6]} 19. Qh5 {[%clk 0:01:48.6]} 19... Bh6
{[%clk 0:01:58.3]} 20. Rf7 {[%clk 0:01:39.7]} 20... Qe3 {[%clk 0:01:37.7]} 21.
Rxb7 {[%clk 0:01:36.4]} 21... Qxd2 {[%clk 0:01:26.7]} 22. Rd1 {[%clk 0:01:19.3]}
22... Qxa2 {[%clk 0:01:10.2]} 23. Qf7+ {[%clk 0:01:19.3]} 23... Kh8 {[%clk
0:01:10]} 24. Qxe6 {[%clk 0:01:20.2]} 24... Qf2 {[%clk 0:00:59.9]} 25. Rf7
{[%clk 0:01:11.3]} 25... Qh4 {[%clk 0:00:30.3]} 26. Qf5 {[%clk 0:01:08.7]} 26...
Be3 {[%clk 0:00:28.5]} 27. g3 {[%clk 0:00:56.4]} 27... Qh6 {[%clk 0:00:26.7]}
28. e6 {[%clk 0:00:55.2]} 28... a2 {[%clk 0:00:19]} 29. e7 {[%clk 0:00:54.8]}
29... Rg8 {[%clk 0:00:18.8]} 30. Rf8 {[%clk 0:00:33.6]} 30... g6 {[%clk
0:00:17.5]} 31. Qe5+ {[%clk 0:00:26.5]} 31... Qg7 {[%clk 0:00:17.3]} 32. Rxg8+
{[%clk 0:00:26.6]} 32... Rxg8 {[%clk 0:00:14.7]} 33. e8=Q {[%clk 0:00:24.5]}
33... Rxe8 {[%clk 0:00:07.6]} 34. Qxe8+ {[%clk 0:00:23.7]} 34... Qg8 {[%clk
0:00:08.1]} 35. Qxe3 {[%clk 0:00:20.6]} 35... Qg7 {[%clk 0:00:08.1]} 36. Qe8+
{[%clk 0:00:20.4]} 36... Qg8 {[%clk 0:00:08]} 37. Qxg8+ {[%clk 0:00:20.8]} 37...
Kxg8 {[%clk 0:00:08.1]} 38. cxd5 {[%clk 0:00:21.4]} 38... cxd5 {[%clk
0:00:07.8]} 39. Ra1 {[%clk 0:00:21.9]} 1-0